[Event "*** Titled Tuesday Blitz"]
[Site "Chess.com"]
[Date "2021.02.16"]
[Round "7"]
[White "korkmaz16"]
[Black "Kale36"]
[Result "0-1"]
[WhiteElo "2378"]
[BlackElo "2237"]
[TimeControl "180+1"]
[EndTime "11:20:10 PST"]
[Termination "Kale36 won on time"]

1. e4 {[%clk 0:03:00.9]} 1... Nc6 {[%clk 0:02:59.6]} 2. Nf3 {[%clk 0:02:56.8]}
2... d6 {[%clk 0:02:59.1]} 3. d4 {[%clk 0:02:52.2]} 3... g6 {[%clk 0:02:58.9]}
4. Bb5 {[%clk 0:02:41.8]} 4... a6 {[%clk 0:02:57.2]} 5. Bxc6+ {[%clk 0:02:35.4]}
5... bxc6 {[%clk 0:02:58.1]} 6. O-O {[%clk 0:02:35]} 6... Bg7 {[%clk 0:02:58.2]}
7. Re1 {[%clk 0:02:31.4]} 7... Bg4 {[%clk 0:02:46.8]} 8. c3 {[%clk 0:02:24]}
8... Nf6 {[%clk 0:02:41.5]} 9. h3 {[%clk 0:02:18.3]} 9... Bxf3 {[%clk
0:02:39.2]} 10. Qxf3 {[%clk 0:02:16]} 10... O-O {[%clk 0:02:38.7]} 11. e5 {[%clk
0:02:14.3]} 11... Nd5 {[%clk 0:02:35.4]} 12. Nd2 {[%clk 0:02:09.5]} 12... Qd7
{[%clk 0:02:25.5]} 13. Ne4 {[%clk 0:01:51.7]} 13... Qf5 {[%clk 0:02:08.5]} 14.
Qg3 {[%clk 0:01:38.7]} 14... dxe5 {[%clk 0:02:02.5]} 15. dxe5 {[%clk 0:01:32.2]}
15... Bxe5 {[%clk 0:02:02.1]} 16. Qh4 {[%clk 0:01:30.1]} 16... Bg7 {[%clk
0:01:53.2]} 17. Bh6 {[%clk 0:01:19.5]} 17... Nf6 {[%clk 0:01:46.2]} 18. Bxg7
{[%clk 0:01:10.5]} 18... Kxg7 {[%clk 0:01:46.5]} 19. Ng3 {[%clk 0:00:49.6]}
19... Qc5 {[%clk 0:01:31.9]} 20. Re2 {[%clk 0:00:28.4]} 20... Rad8 {[%clk
0:01:25.7]} 21. Rae1 {[%clk 0:00:27.7]} 21... Rd7 {[%clk 0:01:25.2]} 22. Re5
{[%clk 0:00:27.2]} 22... Qd6 {[%clk 0:01:02.8]} 23. Qg5 {[%clk 0:00:25.6]} 23...
e6 {[%clk 0:00:58.6]} 24. R5e4 {[%clk 0:00:20.2]} 24... Qd2 {[%clk 0:00:55.1]}
25. R4e3 {[%clk 0:00:16.4]} 25... Rd3 {[%clk 0:00:49.5]} 26. Qxf6+ {[%clk
0:00:09.9]} 26... Kxf6 {[%clk 0:00:46.4]} 27. Ne4+ {[%clk 0:00:10.6]} 27... Ke7
{[%clk 0:00:44.1]} 28. Nxd2 {[%clk 0:00:11.5]} 28... Rxd2 {[%clk 0:00:44.7]} 29.
R3e2 {[%clk 0:00:11.5]} 29... Rfd8 {[%clk 0:00:44.9]} 30. f3 {[%clk 0:00:11.1]}
30... c5 {[%clk 0:00:43.8]} 31. Kf2 {[%clk 0:00:11.2]} 31... R8d3 {[%clk
0:00:41.8]} 32. Rc1 {[%clk 0:00:09]} 32... c4 {[%clk 0:00:40.5]} 33. Rc2 {[%clk
0:00:09.6]} 33... Rd1 {[%clk 0:00:40.3]} 34. b4 {[%clk 0:00:08.4]} 34... Kd6
{[%clk 0:00:39.1]} 35. f4 {[%clk 0:00:06.7]} 35... c5 {[%clk 0:00:38.1]} 36.
bxc5+ {[%clk 0:00:06.1]} 36... Kxc5 {[%clk 0:00:38.4]} 37. Re3 {[%clk
0:00:06.7]} 37... Rxe3 {[%clk 0:00:35.1]} 38. Kxe3 {[%clk 0:00:07.6]} 38... Rd3+
{[%clk 0:00:35.5]} 39. Kf2 {[%clk 0:00:07.6]} 39... f6 {[%clk 0:00:31.8]} 40. g3
{[%clk 0:00:07.3]} 40... e5 {[%clk 0:00:31.7]} 41. fxe5 {[%clk 0:00:07.2]} 41...
fxe5 {[%clk 0:00:32.6]} 42. Kg2 {[%clk 0:00:07.7]} 42... e4 {[%clk 0:00:32.8]}
43. Kf2 {[%clk 0:00:08.3]} 43... Kd5 {[%clk 0:00:31.3]} 44. Kg2 {[%clk
0:00:07.7]} 44... a5 {[%clk 0:00:30.7]} 45. a4 {[%clk 0:00:05.9]} 45... Ke5
{[%clk 0:00:29.9]} 46. Rb2 {[%clk 0:00:05.4]} 46... Rxc3 {[%clk 0:00:29.4]} 47.
Rb5+ {[%clk 0:00:05.6]} 47... Kd4 {[%clk 0:00:29.7]} 48. Rxa5 {[%clk 0:00:06.5]}
48... Rc2+ {[%clk 0:00:29.8]} 49. Kf1 {[%clk 0:00:07.2]} 49... e3 {[%clk
0:00:29.4]} 50. Ra7 {[%clk 0:00:07.1]} 50... Rc1+ {[%clk 0:00:19.1]} 51. Ke2
{[%clk 0:00:07.1]} 51... Rc2+ {[%clk 0:00:19.4]} 52. Ke1 {[%clk 0:00:07.7]}
52... Kc3 {[%clk 0:00:18.3]} 53. a5 {[%clk 0:00:06.7]} 53... Ra2 {[%clk
0:00:18]} 54. a6 {[%clk 0:00:07.1]} 54... g5 {[%clk 0:00:17.3]} 55. h4 {[%clk
0:00:06.3]} 55... gxh4 {[%clk 0:00:16.9]} 56. gxh4 {[%clk 0:00:07.2]} 56... h5
{[%clk 0:00:16.9]} 57. Ra8 {[%clk 0:00:06.3]} 57... Kc2 {[%clk 0:00:15.8]} 58.
a7 {[%clk 0:00:06.2]} 58... c3 {[%clk 0:00:16.2]} 59. Ke2 {[%clk 0:00:06.5]}
59... Kb1+ {[%clk 0:00:12.3]} 60. Kxe3 {[%clk 0:00:06.7]} 60... c2 {[%clk
0:00:12.8]} 61. Rb8+ {[%clk 0:00:06.7]} 61... Ka1 {[%clk 0:00:12.5]} 62. Rc8
{[%clk 0:00:05]} 62... Kb2 {[%clk 0:00:11.4]} 63. Rb8+ {[%clk 0:00:01.9]} 63...
Kc3 {[%clk 0:00:10.8]} 64. a8=Q {[%clk 0:00:01.9]} 64... Rxa8 {[%clk 0:00:08.6]}
65. Rxa8 {[%clk 0:00:02.8]} 65... c1=Q+ {[%clk 0:00:07.6]} 66. Ke4 {[%clk
0:00:03.3]} 66... Qe1+ {[%clk 0:00:06.7]} 67. Kf5 {[%clk 0:00:03.7]} 67... Qxh4
{[%clk 0:00:07.1]} 68. Ra3+ {[%clk 0:00:02.8]} 68... Kb4 {[%clk 0:00:06.7]} 69.
Rf3 {[%clk 0:00:03]} 69... Qg4+ {[%clk 0:00:06.6]} 0-1

[Event "*** Titled Tuesday Blitz"]
[Site "Chess.com"]
[Date "2021.02.16"]
[Round "7"]
[White "mary-sanna"]
[Black "Nemsko"]
[Result "1/2-1/2"]
[WhiteElo "2054"]
[BlackElo "2328"]
[TimeControl "180+1"]
[EndTime "11:20:10 PST"]
[Termination "Game drawn by stalemate"]

1. d4 {[%clk 0:03:00.9]} 1... Nf6 {[%clk 0:02:58.4]} 2. Bf4 {[%clk 0:03:00.3]}
2... d5 {[%clk 0:02:57.5]} 3. e3 {[%clk 0:03:00.3]} 3... e6 {[%clk 0:02:57.5]}
4. Nf3 {[%clk 0:02:55.7]} 4... Bd6 {[%clk 0:02:57.9]} 5. Bxd6 {[%clk 0:02:55.1]}
5... Qxd6 {[%clk 0:02:58.8]} 6. c4 {[%clk 0:02:55.2]} 6... c6 {[%clk 0:02:58.7]}
7. Nc3 {[%clk 0:02:54.6]} 7... O-O {[%clk 0:02:58.6]} 8. Bd3 {[%clk 0:02:53.8]}
8... Nbd7 {[%clk 0:02:58.4]} 9. O-O {[%clk 0:02:53.4]} 9... e5 {[%clk
0:02:57.7]} 10. Nxe5 {[%clk 0:02:47.7]} 10... Nxe5 {[%clk 0:02:58.6]} 11. dxe5
{[%clk 0:02:47.8]} 11... Qxe5 {[%clk 0:02:59.2]} 12. cxd5 {[%clk 0:02:45.2]}
12... Nxd5 {[%clk 0:02:55.5]} 13. Nxd5 {[%clk 0:02:30.1]} 13... Qxd5 {[%clk
0:02:56.4]} 14. Qc2 {[%clk 0:02:20.5]} 14... h6 {[%clk 0:02:54.7]} 15. Rfd1
{[%clk 0:02:17.2]} 15... Qg5 {[%clk 0:02:52.1]} 16. f4 {[%clk 0:01:53.5]} 16...
Qe7 {[%clk 0:02:48.9]} 17. e4 {[%clk 0:01:47.3]} 17... Bg4 {[%clk 0:02:47.8]}
18. Re1 {[%clk 0:01:45.6]} 18... Rad8 {[%clk 0:02:46.8]} 19. h3 {[%clk
0:01:44.4]} 19... Bc8 {[%clk 0:02:43.3]} 20. Rad1 {[%clk 0:01:39.5]} 20... Rd4
{[%clk 0:02:37.5]} 21. Bc4 {[%clk 0:01:19.4]} 21... Rfd8 {[%clk 0:02:32.4]} 22.
e5 {[%clk 0:01:14.8]} 22... Rxd1 {[%clk 0:02:09.7]} 23. Rxd1 {[%clk 0:01:14]}
23... Rxd1+ {[%clk 0:02:07.4]} 24. Qxd1 {[%clk 0:01:13.8]} 24... Qc5+ {[%clk
0:02:04.7]} 25. Kh1 {[%clk 0:01:08.9]} 25... Qxc4 {[%clk 0:01:45.9]} 26. Qd8+
{[%clk 0:01:08.4]} 26... Kh7 {[%clk 0:01:44.8]} 27. Qxc8 {[%clk 0:01:07.6]}
27... Qf1+ {[%clk 0:01:43.3]} 28. Kh2 {[%clk 0:01:06.4]} 28... Qxf4+ {[%clk
0:01:43.4]} 29. Kh1 {[%clk 0:01:03.6]} 29... Qxe5 {[%clk 0:00:54.2]} 30. Qxb7
{[%clk 0:01:00.8]} 30... f5 {[%clk 0:00:53.7]} 31. Qxc6 {[%clk 0:00:53.8]} 31...
Qxb2 {[%clk 0:00:52.8]} 32. Qd5 {[%clk 0:00:53.7]} 32... Qb1+ {[%clk 0:00:50.6]}
33. Kh2 {[%clk 0:00:51.7]} 33... Qc2 {[%clk 0:00:44.1]} 34. Qf7 {[%clk
0:00:48.6]} 34... a5 {[%clk 0:00:39.7]} 35. h4 {[%clk 0:00:42.6]} 35... Qe4
{[%clk 0:00:21]} 36. h5 {[%clk 0:00:42.3]} 36... Qh4+ {[%clk 0:00:19.6]} 37. Kg1
{[%clk 0:00:42.1]} 37... Qg5 {[%clk 0:00:19.8]} 38. Kh2 {[%clk 0:00:38.3]} 38...
f4 {[%clk 0:00:19.7]} 39. Kh1 {[%clk 0:00:34.8]} 39... Qh4+ {[%clk 0:00:16.5]}
40. Kg1 {[%clk 0:00:34.5]} 40... Qg4 {[%clk 0:00:15.3]} 41. Kh2 {[%clk
0:00:33.6]} 41... Qg3+ {[%clk 0:00:13.8]} 42. Kh1 {[%clk 0:00:32.9]} 42... Qg5
{[%clk 0:00:09.3]} 43. Kh2 {[%clk 0:00:32]} 43... a4 {[%clk 0:00:08.9]} 44. Kh1
{[%clk 0:00:30.9]} 44... a3 {[%clk 0:00:07.4]} 45. Kh2 {[%clk 0:00:27.1]} 45...
Qh4+ {[%clk 0:00:05.8]} 46. Kg1 {[%clk 0:00:26.7]} 46... Qe1+ {[%clk 0:00:04.5]}
47. Kh2 {[%clk 0:00:26.6]} 47... Qg3+ {[%clk 0:00:02.9]} 48. Kh1 {[%clk
0:00:25.1]} 48... Qh4+ {[%clk 0:00:03.1]} 49. Kg1 {[%clk 0:00:25.1]} 49... Qg5
{[%clk 0:00:03.2]} 50. Kh2 {[%clk 0:00:24.4]} 50... Qe5 {[%clk 0:00:02.1]} 51.
Qg6+ {[%clk 0:00:21.5]} 51... Kg8 {[%clk 0:00:02.3]} 52. Kh1 {[%clk 0:00:13.5]}
52... Qe1+ {[%clk 0:00:02.2]} 53. Kh2 {[%clk 0:00:13.4]} 53... Qh4+ {[%clk
0:00:02.8]} 54. Kg1 {[%clk 0:00:12.8]} 54... Qe1+ {[%clk 0:00:02.7]} 55. Kh2
{[%clk 0:00:12.9]} 55... Qe5 {[%clk 0:00:03.4]} 56. Kg1 {[%clk 0:00:05.3]} 56...
Qc5+ {[%clk 0:00:03]} 57. Kh2 {[%clk 0:00:04.7]} 57... Qe3 {[%clk 0:00:02]} 58.
Kh1 {[%clk 0:00:02.9]} 58... Qg3 {[%clk 0:00:01.4]} 59. Kg1 {[%clk 0:00:02.9]}
59... Qxg6 {[%clk 0:00:01.4]} 60. hxg6 {[%clk 0:00:02.6]} 60... Kf8 {[%clk
0:00:02.3]} 61. Kf2 {[%clk 0:00:03.2]} 61... Ke7 {[%clk 0:00:03.2]} 62. Kf3
{[%clk 0:00:04.1]} 62... Kf6 {[%clk 0:00:04.1]} 63. Kxf4 {[%clk 0:00:05]} 63...
Kxg6 {[%clk 0:00:04.8]} 64. Kg4 {[%clk 0:00:04.9]} 64... Kf6 {[%clk 0:00:05.7]}
65. Kf4 {[%clk 0:00:05.3]} 65... g5+ {[%clk 0:00:05.9]} 66. Kg4 {[%clk
0:00:05.5]} 66... Kg6 {[%clk 0:00:06.5]} 67. Kf3 {[%clk 0:00:05.5]} 67... h5
{[%clk 0:00:07.4]} 68. Kg3 {[%clk 0:00:05.8]} 68... Kf5 {[%clk 0:00:08]} 69. Kf3
{[%clk 0:00:06.3]} 69... g4+ {[%clk 0:00:08]} 70. Kg3 {[%clk 0:00:06.7]} 70...
Kg5 {[%clk 0:00:08.9]} 71. Kh2 {[%clk 0:00:07.1]} 71... h4 {[%clk 0:00:09.5]}
72. Kg1 {[%clk 0:00:06.6]} 72... g3 {[%clk 0:00:09.6]} 73. Kf1 {[%clk
0:00:06.6]} 73... Kf4 {[%clk 0:00:10.4]} 74. Ke2 {[%clk 0:00:07]} 74... Kg4
{[%clk 0:00:10.3]} 75. Kf1 {[%clk 0:00:07.3]} 75... h3 {[%clk 0:00:09.5]} 76.
Kg1 {[%clk 0:00:08]} 76... h2+ {[%clk 0:00:08.8]} 77. Kh1 {[%clk 0:00:08.7]}
77... Kf4 {[%clk 0:00:07.2]} 1/2-1/2

[Event "*** Titled Tuesday Blitz"]
[Site "Chess.com"]
[Date "2021.02.16"]
[Round "7"]
[White "Politov_Pavel"]
[Black "csati17"]
[Result "0-1"]
[WhiteElo "2406"]
[BlackElo "2585"]
[TimeControl "180+1"]
[EndTime "11:20:11 PST"]
[Termination "csati17 won on time"]

1. e4 {[%clk 0:03:00.9]} 1... e6 {[%clk 0:03:00.3]} 2. d4 {[%clk 0:03:00.2]}
2... d5 {[%clk 0:03:00.9]} 3. e5 {[%clk 0:02:56.9]} 3... c5 {[%clk 0:03:00.1]}
4. c3 {[%clk 0:02:57.4]} 4... Nc6 {[%clk 0:02:59.9]} 5. Nf3 {[%clk 0:02:58.1]}
5... Qb6 {[%clk 0:03:00.4]} 6. a3 {[%clk 0:02:58.7]} 6... Nh6 {[%clk 0:03:00]}
7. b4 {[%clk 0:02:57.4]} 7... cxd4 {[%clk 0:03:00.1]} 8. cxd4 {[%clk 0:02:58.3]}
8... Nf5 {[%clk 0:03:00.5]} 9. Bb2 {[%clk 0:02:58.7]} 9... Bd7 {[%clk
0:02:58.9]} 10. g4 {[%clk 0:02:52.8]} 10... Nh6 {[%clk 0:02:51.3]} 11. Rg1
{[%clk 0:02:46]} 11... f6 {[%clk 0:02:48.8]} 12. Nc3 {[%clk 0:02:37.5]} 12...
fxe5 {[%clk 0:02:41.4]} 13. Na4 {[%clk 0:02:37.3]} 13... Qd8 {[%clk 0:02:37.2]}
14. dxe5 {[%clk 0:02:33.1]} 14... Nf7 {[%clk 0:02:35.3]} 15. h4 {[%clk
0:02:25.3]} 15... Rc8 {[%clk 0:02:25.4]} 16. g5 {[%clk 0:02:23.7]} 16... g6
{[%clk 0:02:24.5]} 17. Rc1 {[%clk 0:02:15.9]} 17... Bg7 {[%clk 0:02:21.7]} 18.
Nc5 {[%clk 0:02:14.9]} 18... Ncxe5 {[%clk 0:02:15.1]} 19. Nd4 {[%clk 0:02:00.8]}
19... Rxc5 {[%clk 0:01:51.6]} 20. Rxc5 {[%clk 0:01:50.2]} 20... Nd6 {[%clk
0:01:43.3]} 21. Bh3 {[%clk 0:01:14.5]} 21... Ndc4 {[%clk 0:01:15.6]} 22. Ba1
{[%clk 0:00:54.4]} 22... b6 {[%clk 0:00:56]} 23. Rxc4 {[%clk 0:00:50.5]} 23...
dxc4 {[%clk 0:00:51.8]} 24. Rg3 {[%clk 0:00:27.6]} 24... Qe7 {[%clk 0:00:34.7]}
25. Qe2 {[%clk 0:00:25.8]} 25... O-O {[%clk 0:00:33.3]} 26. Kd1 {[%clk
0:00:17.1]} 26... Qd6 {[%clk 0:00:28.8]} 27. Kc2 {[%clk 0:00:15.6]} 27... Ba4+
{[%clk 0:00:27.8]} 28. Kb1 {[%clk 0:00:15.2]} 28... Rf4 {[%clk 0:00:27]} 29.
Bxe6+ {[%clk 0:00:14.9]} 29... Kh8 {[%clk 0:00:26.2]} 30. Qd2 {[%clk 0:00:10.2]}
30... Nd3 {[%clk 0:00:21.7]} 31. Ne2 {[%clk 0:00:07.8]} 31... Bxa1 {[%clk
0:00:08.8]} 32. Nxf4 {[%clk 0:00:07.5]} 32... Qxf4 {[%clk 0:00:08.9]} 33. Qxf4
{[%clk 0:00:07.5]} 33... Nxf4 {[%clk 0:00:09.8]} 34. Kxa1 {[%clk 0:00:08.2]}
34... Nxe6 {[%clk 0:00:10.1]} 35. Re3 {[%clk 0:00:07.5]} 35... Nd4 {[%clk
0:00:09.4]} 36. Kb2 {[%clk 0:00:07.8]} 36... Kg7 {[%clk 0:00:05.9]} 37. Re7+
{[%clk 0:00:08]} 37... Kf8 {[%clk 0:00:06.1]} 38. Rxa7 {[%clk 0:00:08.9]} 38...
Bc6 {[%clk 0:00:05.5]} 39. Rc7 {[%clk 0:00:08.8]} 39... Bd5 {[%clk 0:00:04]} 40.
a4 {[%clk 0:00:09.2]} 40... Ne2 {[%clk 0:00:03.1]} 41. a5 {[%clk 0:00:09.3]}
41... c3+ {[%clk 0:00:03.6]} 42. Kc2 {[%clk 0:00:10]} 42... bxa5 {[%clk
0:00:03.8]} 43. bxa5 {[%clk 0:00:05.9]} 43... Be4+ {[%clk 0:00:04.1]} 44. Kb3
{[%clk 0:00:05.4]} 44... Bd5+ {[%clk 0:00:04]} 45. Kb4 {[%clk 0:00:05.2]} 45...
Be4 {[%clk 0:00:03.9]} 46. a6 {[%clk 0:00:05.5]} 46... c2 {[%clk 0:00:04.3]} 47.
a7 {[%clk 0:00:06.2]} 47... c1=Q {[%clk 0:00:04.5]} 48. Rxc1 {[%clk 0:00:06.3]}
48... Nxc1 {[%clk 0:00:05.4]} 49. Kc5 {[%clk 0:00:06.8]} 49... Nd3+ {[%clk
0:00:05.4]} 50. Kd4 {[%clk 0:00:07.7]} 50... Nxf2 {[%clk 0:00:05.3]} 51. Ke3
{[%clk 0:00:07.6]} 51... Ba8 {[%clk 0:00:05.6]} 52. Kxf2 {[%clk 0:00:07.9]}
52... Ke7 {[%clk 0:00:06.5]} 53. Ke3 {[%clk 0:00:08.6]} 53... Kd6 {[%clk
0:00:06.8]} 54. Kd4 {[%clk 0:00:09.4]} 54... Bh1 {[%clk 0:00:06.4]} 55. Ke3
{[%clk 0:00:08.7]} 55... Kc7 {[%clk 0:00:06.8]} 56. Kd4 {[%clk 0:00:08.8]} 56...
Kb7 {[%clk 0:00:06.5]} 57. Ke5 {[%clk 0:00:09.4]} 57... Kxa7 {[%clk 0:00:07.1]}
58. Kf6 {[%clk 0:00:10.1]} 58... Be4 {[%clk 0:00:07.1]} 59. Kg7 {[%clk
0:00:10.2]} 59... Bf3 {[%clk 0:00:06.9]} 60. Kxh7 {[%clk 0:00:10.9]} 60... Bh5
{[%clk 0:00:07.8]} 61. Kg7 {[%clk 0:00:10.6]} 61... Kb6 {[%clk 0:00:08.7]} 62.
Kf6 {[%clk 0:00:11.3]} 62... Kc5 {[%clk 0:00:09.6]} 63. Ke5 {[%clk 0:00:12]}
63... Kc4 {[%clk 0:00:10.2]} 64. Ke4 {[%clk 0:00:12.4]} 64... Kc3 {[%clk
0:00:10.8]} 65. Ke3 {[%clk 0:00:12.7]} 65... Kc2 {[%clk 0:00:11.4]} 66. Ke4
{[%clk 0:00:12.5]} 66... Kd1 {[%clk 0:00:12.3]} 67. Kf4 {[%clk 0:00:13.2]} 67...
Ke1 {[%clk 0:00:12.7]} 68. Kg3 {[%clk 0:00:14]} 68... Kf1 {[%clk 0:00:13.2]} 69.
Kf4 {[%clk 0:00:14.6]} 69... Kf2 {[%clk 0:00:13.6]} 70. Ke5 {[%clk 0:00:14.5]}
70... Kg3 {[%clk 0:00:14.1]} 71. Kf6 {[%clk 0:00:15.2]} 71... Kxh4 {[%clk
0:00:13.6]} 0-1

[Event "*** Titled Tuesday Blitz"]
[Site "Chess.com"]
[Date "2021.02.16"]
[Round "7"]
[White "MrTattaglia"]
[Black "Pelopidass"]
[Result "1/2-1/2"]
[WhiteElo "2752"]
[BlackElo "2596"]
[TimeControl "180+1"]
[EndTime "11:20:15 PST"]
[Termination "Game drawn by repetition"]

1. f4 {[%clk 0:02:59.1]} 1... d5 {[%clk 0:02:58.8]} 2. Nf3 {[%clk 0:02:57.5]}
2... g6 {[%clk 0:02:58]} 3. g3 {[%clk 0:02:57.9]} 3... Bg7 {[%clk 0:02:56.1]} 4.
Bg2 {[%clk 0:02:58.5]} 4... c5 {[%clk 0:02:53.1]} 5. O-O {[%clk 0:02:58.8]} 5...
Nc6 {[%clk 0:02:53.4]} 6. d3 {[%clk 0:02:59]} 6... Bg4 {[%clk 0:02:47.2]} 7.
Nbd2 {[%clk 0:02:53.1]} 7... Qd7 {[%clk 0:02:40.5]} 8. c3 {[%clk 0:02:52.2]}
8... Nh6 {[%clk 0:02:25.9]} 9. e4 {[%clk 0:02:48.8]} 9... dxe4 {[%clk
0:02:24.7]} 10. dxe4 {[%clk 0:02:49.7]} 10... Rd8 {[%clk 0:02:20.9]} 11. Qe1
{[%clk 0:02:44.7]} 11... Bh3 {[%clk 0:02:13.1]} 12. e5 {[%clk 0:02:27.9]} 12...
Bxg2 {[%clk 0:02:11.9]} 13. Kxg2 {[%clk 0:02:28.8]} 13... O-O {[%clk 0:01:48.7]}
14. Ne4 {[%clk 0:01:54.6]} 14... b6 {[%clk 0:01:44.1]} 15. Qe2 {[%clk
0:01:53.1]} 15... Qd3 {[%clk 0:01:34.2]} 16. Re1 {[%clk 0:01:48.1]} 16... Qxe2+
{[%clk 0:01:23]} 17. Rxe2 {[%clk 0:01:49]} 17... f6 {[%clk 0:01:12.2]} 18. e6
{[%clk 0:01:27.1]} 18... Nf5 {[%clk 0:00:56.5]} 19. g4 {[%clk 0:01:23.7]} 19...
Nd6 {[%clk 0:00:55.8]} 20. Nxd6 {[%clk 0:01:22.6]} 20... Rxd6 {[%clk 0:00:56.7]}
21. f5 {[%clk 0:01:23]} 21... Rd1 {[%clk 0:00:48.4]} 22. b3 {[%clk 0:01:02.9]}
22... Rfd8 {[%clk 0:00:39.6]} 23. Bb2 {[%clk 0:01:00]} 23... Rxa1 {[%clk
0:00:37.6]} 24. Bxa1 {[%clk 0:01:00.9]} 24... Bh6 {[%clk 0:00:36.9]} 25. c4
{[%clk 0:00:55.9]} 25... Bf4 {[%clk 0:00:32]} 26. Re4 {[%clk 0:00:42]} 26... g5
{[%clk 0:00:31.2]} 27. Bc3 {[%clk 0:00:32.1]} 27... Rd3 {[%clk 0:00:26.3]} 28.
Bxf6 {[%clk 0:00:30.6]} 28... exf6 {[%clk 0:00:18.4]} 29. e7 {[%clk 0:00:30]}
29... Nxe7 {[%clk 0:00:18.6]} 30. Rxe7 {[%clk 0:00:30.9]} 30... Rc3 {[%clk
0:00:19.1]} 31. Rxa7 {[%clk 0:00:24.9]} 31... Rc2+ {[%clk 0:00:19.4]} 32. Kf1
{[%clk 0:00:23.7]} 32... h5 {[%clk 0:00:19.7]} 33. h3 {[%clk 0:00:18.2]} 33...
h4 {[%clk 0:00:18.1]} 34. Rb7 {[%clk 0:00:15.5]} 34... Rc3 {[%clk 0:00:15.9]}
35. Ke2 {[%clk 0:00:15.1]} 35... Rc2+ {[%clk 0:00:15.7]} 36. Kf1 {[%clk
0:00:15.6]} 36... Rc3 {[%clk 0:00:15.5]} 37. Ne1 {[%clk 0:00:06.4]} 37... Rxh3
{[%clk 0:00:14.7]} 38. Rxb6 {[%clk 0:00:06.3]} 38... Rh1+ {[%clk 0:00:15.1]} 39.
Ke2 {[%clk 0:00:06.5]} 39... h3 {[%clk 0:00:15]} 40. Nf3 {[%clk 0:00:07]} 40...
h2 {[%clk 0:00:15.1]} 41. Nxh2 {[%clk 0:00:04.6]} 41... Rxh2+ {[%clk 0:00:16]}
42. Kf3 {[%clk 0:00:04.9]} 42... Rxa2 {[%clk 0:00:16.9]} 43. Rxf6 {[%clk
0:00:04.6]} 43... Rb2 {[%clk 0:00:16.4]} 44. Rb6 {[%clk 0:00:05]} 44... Kf7
{[%clk 0:00:16.3]} 45. Ke4 {[%clk 0:00:03.6]} 45... Rd2 {[%clk 0:00:15.7]} 46.
f6 {[%clk 0:00:03.2]} 46... Rd4+ {[%clk 0:00:15.9]} 47. Kf5 {[%clk 0:00:03.3]}
47... Rd7 {[%clk 0:00:16]} 48. b4 {[%clk 0:00:01.7]} 48... cxb4 {[%clk
0:00:15.9]} 49. Rxb4 {[%clk 0:00:02.6]} 49... Rc7 {[%clk 0:00:16.1]} 50. Rb5
{[%clk 0:00:03.1]} 50... Be3 {[%clk 0:00:15.9]} 51. Re5 {[%clk 0:00:02.8]} 51...
Bf4 {[%clk 0:00:15.5]} 52. Rd5 {[%clk 0:00:02.9]} 52... Rxc4 {[%clk 0:00:15.3]}
53. Rd7+ {[%clk 0:00:02.8]} 53... Ke8 {[%clk 0:00:15.8]} 54. Re7+ {[%clk
0:00:03.3]} 54... Kf8 {[%clk 0:00:15.5]} 55. Ra7 {[%clk 0:00:03.9]} 55... Rc8
{[%clk 0:00:14.1]} 56. Kg6 {[%clk 0:00:04]} 56... Be5 {[%clk 0:00:14.1]} 57.
Rf7+ {[%clk 0:00:03.9]} 57... Kg8 {[%clk 0:00:13.9]} 58. Rg7+ {[%clk 0:00:04.2]}
58... Kf8 {[%clk 0:00:14.1]} 59. Rh7 {[%clk 0:00:03.4]} 59... Bxf6 {[%clk
0:00:14]} 60. Rf7+ {[%clk 0:00:03.6]} 60... Kg8 {[%clk 0:00:13.5]} 61. Rxf6
{[%clk 0:00:04.5]} 61... Rc5 {[%clk 0:00:13.4]} 62. Rf5 {[%clk 0:00:03.5]} 62...
Rxf5 {[%clk 0:00:12]} 63. Kxf5 {[%clk 0:00:03.2]} 63... Kf7 {[%clk 0:00:11.7]}
64. Ke5 {[%clk 0:00:03.7]} 64... Kg7 {[%clk 0:00:11.4]} 65. Ke6 {[%clk
0:00:03.4]} 65... Kg6 {[%clk 0:00:11.6]} 66. Kd5 {[%clk 0:00:03.2]} 66... Kf6
{[%clk 0:00:11.9]} 67. Kd6 {[%clk 0:00:03.8]} 67... Kf7 {[%clk 0:00:12.2]} 68.
Ke5 {[%clk 0:00:04.4]} 68... Kg6 {[%clk 0:00:12.4]} 69. Ke6 {[%clk 0:00:05.3]}
69... Kg7 {[%clk 0:00:13]} 70. Ke5 {[%clk 0:00:05.3]} 70... Kg6 {[%clk 0:00:13]}
71. Ke6 {[%clk 0:00:04.9]} 71... Kg7 {[%clk 0:00:13.4]} 72. Kd6 {[%clk
0:00:05.5]} 72... Kf6 {[%clk 0:00:13.7]} 73. Kd5 {[%clk 0:00:06]} 73... Kf7
{[%clk 0:00:14.1]} 74. Ke5 {[%clk 0:00:06.3]} 1/2-1/2